bitfinex/quotes_BTCUSD_20250204
["timestamp","ask_amount","ask_price","bid_price","bid_amount"]
[1738700536057,0.10238506,98373.0,98358.0,0.0001068]
[1738700536257,0.00063197,98372.0,98358.0,0.0001068]
[1738700536482,0.10238506,98371.0,98358.0,0.0001068]
[1738700536807,0.00063197,98370.0,98358.0,0.0001068]
[1738700537012,0.10238506,98369.0,98358.0,0.0001068]
[1738700537237,0.00063197,98368.0,98358.0,0.0001068]
[1738700537402,0.023,98359.0,98358.0,0.0001068]
[1738700537600,0.12601703,98359.0,98358.0,0.0001068]
[1738700538246,0.01,98357.0,98319.0,0.08141085]
[1738700538464,0.152563,98320.0,98319.0,0.08141085]
[1738700538669,0.17619497,98320.0,98319.0,0.08141085]
[1738700538907,0.15258,98309.0,98308.0,0.08141085]
[1738700539111,0.023,98308.0,98292.0,0.0001069]
[1738700539318,0.023,98301.0,98292.0,0.0001069]
[1738700539519,0.12601703,98301.0,98292.0,0.0001069]
[1738700539718,0.12538506,98301.0,98292.0,0.0001069]
[1738700540163,0.10238506,98301.0,98292.0,0.0001069]
[1738700540355,0.152568,98317.0,98298.0,0.152595]
[1738700540566,0.10238506,98315.0,98292.0,0.0001069]
[1738700540740,1.52363197,98314.0,98292.0,0.0001069]
[1738700540942,0.10238506,98313.0,98292.0,0.0001069]
[1738700541528,1.5,98332.0,98292.0,0.0001069]
[1738700541729,0.023,98330.0,98293.0,0.00122045]
[1738700541937,0.023,98328.0,98294.0,0.00122045]
[1738700542215,0.023,98326.0,98317.0,0.203422]
[1738700542421,0.023,98326.0,98292.0,0.1501069]
[1738700542422,0.10238506,98326.0,98325.0,0.152555]
[1738700542629,0.0144,98364.0,98298.0,0.08141085]
[1738700542840,0.10238506,98351.0,98310.0,0.08141085]
[1738700543042,0.10238506,98351.0,98312.0,0.15]
[1738700543249,0.10238506,98351.0,98314.0,0.15]
[1738700543467,0.10238506,98351.0,98347.0,0.15252]
[1738700543678,0.10238506,98351.0,98344.0,0.152525]
[1738700543883,0.10238506,98351.0,98317.0,0.081]
[1738700544092,0.00063197,98366.0,98317.0,0.081]
[1738700544093,0.00832183,98367.0,98327.0,0.08141085]
[1738700544298,0.10301703,98366.0,98318.0,0.10238506]
[1738700544503,0.023,98365.0,98330.0,0.15]
[1738700544721,0.023,98363.0,98346.0,0.152522]
[1738700544922,0.023,98363.0,98342.0,0.20337]
[1738700544923,0.10238506,98362.0,98343.0,0.00122]
[1738700545126,0.10238506,98362.0,98358.0,0.152503]
[1738700545334,0.10238506,98362.0,98338.0,0.40676]
[1738700545537,0.00508357,98379.0,98339.0,0.00121995]
[1738700545751,0.10238506,98378.0,98340.0,0.00121991]
[1738700545951,0.023,98377.0,98361.0,0.152498]
[1738700546159,0.023,98374.0,98345.0,0.08141085]
[1738700546363,0.10238506,98368.0,98333.0,0.08141085]
[1738700546543,0.10238506,98356.0,98333.0,0.08141085]
[1738700546744,0.023,98354.0,98333.0,0.08141085]
[1738700546945,0.023,98341.0,98333.0,0.08141085]
[1738700547079,0.02363197,98349.0,98333.0,0.08141085]
[1738700547280,0.10238506,98356.0,98333.0,0.08141085]
[1738700547490,0.03120408,98355.0,98328.0,0.00122021]
[1738700547710,0.023,98350.0,98332.0,0.152542]
[1738700547968,0.023,98348.0,98333.0,0.00122021]
[1738700548160,0.023,98348.0,98332.0,0.152544]
[1738700548161,0.023,98346.0,98332.0,0.152544]
[1738700548362,0.152534,98339.0,98323.0,0.152557]
[1738700548517,0.152552,98327.0,98310.0,0.08141085]
[1738700548719,0.023,98325.0,98310.0,0.08141085]
[1738700548935,0.10301703,98324.0,98311.0,0.152575]
[1738700549161,0.02363197,98323.0,98292.0,0.2035809]
[1738700549325,0.023,98321.0,98310.0,0.152578]
[1738700549525,0.10238506,98320.0,98301.0,0.152592]
[1738700549720,0.10238506,98320.0,98300.0,0.00132725]
[1738700549721,0.10238506,98320.0,98300.0,0.0001067]
[1738700549971,0.00063197,98319.0,98282.0,0.08141085]
[1738700550121,0.10238506,98313.0,98282.0,0.08141085]
[1738700550323,0.203445,98307.0,98282.0,0.08141085]
[1738700550594,0.10238506,98306.0,98289.0,0.15261]
[1738700550827,1.5,98319.0,98290.0,0.00122069]
[1738700551011,0.10238506,98318.0,98291.0,0.00122056]
[1738700551223,0.00063197,98317.0,98282.0,0.08141085]
[1738700551428,0.203431,98313.0,98282.0,0.08263141]
[1738700551633,0.12538506,98309.0,98282.0,0.08141085]
[1738700551881,0.023,98301.0,98282.0,0.08141085]
[1738700552085,0.00063197,98300.0,98282.0,0.08141085]
[1738700552290,0.00063197,98299.0,98282.0,0.08141085]
[1738700552494,0.152636,98273.0,98266.0,0.09044303]
[1738700552700,0.00063197,98281.0,98266.0,0.09044303]
[1738700552903,0.023,98277.0,98266.0,0.09044303]
[1738700553149,0.023,98275.0,98266.0,0.09044303]
[1738700553356,0.25502006,98274.0,98266.0,0.09044303]
[1738700553488,0.10238506,98274.0,98266.0,0.09044303]
[1738700553694,0.10238506,98274.0,98273.0,0.152636]
[1738700553892,0.10238506,98274.0,98266.0,0.09044303]
[1738700553893,0.15,98316.0,98266.0,0.09044303]
[1738700554110,0.10238506,98299.0,98273.0,0.00195053]
[1738700554308,0.0776,98320.0,98275.0,0.20351]
[1738700554309,0.203419,98320.0,98275.0,0.20351]
[1738700554519,0.10301703,98319.0,98280.0,0.32115667]
[1738700554741,0.10301703,98319.0,98276.0,0.00122078]
[1738700554742,0.10238506,98319.0,98290.0,0.32115667]
[1738700554891,0.0142,98351.0,98315.0,0.15257]
[1738700554892,0.152546,98331.0,98315.0,0.15257]
[1738700555096,0.10238506,98330.0,98298.0,0.00122044]
[1738700555301,0.10238506,98330.0,98316.0,0.0019862]
[1738700555511,0.10238506,98330.0,98298.0,0.10238506]
[1738700555723,0.00063197,98350.0,98317.0,0.0019862]
[1738700555925,0.00848241,98354.0,98322.0,0.203413]
[1738700556317,0.10238506,98353.0,98348.0,0.152519]
[1738700556591,0.203258,98397.0,98325.0,0.00122007]
[1738700556793,0.10238506,98380.0,98341.0,0.15]
[1738700556961,0.10238506,98380.0,98342.0,0.0012199]
[1738700557148,0.10238506,98377.0,98332.0,0.0491]
[1738700557359,0.10238506,98362.0,98326.0,0.152553]
[1738700557693,0.152509,98355.0,98337.0,0.152535]
[1738700557915,0.152509,98355.0,98311.0,0.15]
[1738700557916,0.10238506,98362.0,98338.0,0.0012202]
[1738700558243,0.152477,98376.0,98341.0,0.15]
[1738700558429,0.10238506,98375.0,98342.0,0.00121992]
[1738700558616,0.10238506,98375.0,98343.0,0.00121992]
[1738700558817,0.10238506,98375.0,98353.0,0.152511]
[1738700559036,0.10238506,98375.0,98343.0,0.00121992]
[1738700559246,1.5,98374.0,98344.0,0.08263074]
[1738700559450,0.10238506,98373.0,98364.0,0.152494]
[1738700559860,0.10238506,98373.0,98344.0,0.08141085]
[1738700560069,0.023,98370.0,98344.0,0.08141085]
[1738700560277,0.023,98370.0,98337.0,0.0046928]
[1738700560278,0.023,98368.0,98337.0,0.0046928]
[1738700560477,0.023,98366.0,98338.0,0.00122006]
[1738700560650,0.203336,98360.0,98337.0,0.0046928]
[1738700560908,0.203338,98358.0,98337.0,0.0046928]
[1738700561064,0.10238506,98357.0,98339.0,0.152533]
[1738700561264,0.10238506,98357.0,98337.0,0.0046928]
[1738700562067,0.10238506,98357.0,98338.0,0.00122006]
[1738700562280,0.10238506,98357.0,98337.0,0.0046928]
[1738700562629,0.10238506,98357.0,98338.0,0.152534]
[1738700562934,0.10238506,98357.0,98337.0,0.0046928]
[1738700563116,0.152526,98344.0,98337.0,0.0046928]
[1738700563315,0.10301703,98343.0,98337.0,0.0046928]
[1738700563517,0.175535,98338.0,98337.0,0.0046928]
[1738700563731,0.27792006,98338.0,98337.0,0.0046928]
[1738700563931,1.77792006,98338.0,98337.0,0.0046928]
[1738700566163,1.78637456,98338.0,98337.0,0.0046928]
[1738700566361,0.10238506,98338.0,98337.0,0.0046928]
[1738700567014,0.203333,98361.0,98337.0,0.0046928]
[1738700567201,0.10238506,98360.0,98338.0,0.00119851]
[1738700567575,0.00871446,98373.0,98338.0,0.00119851]
[1738700567766,0.10238506,98372.0,98338.0,0.00119851]
[1738700567955,0.10238506,98372.0,98356.0,0.152506]
[1738700568156,0.10238506,98372.0,98357.0,0.0012199]
[1738700568389,0.00063197,98402.0,98361.0,0.15]
[1738700568595,0.00022471,98418.0,98361.0,0.15]
[1738700568596,0.10238506,98401.0,98381.0,0.203291]
[1738700568796,0.203222,98415.0,98383.0,0.203285]
[1738700568996,0.10238506,98408.0,98384.0,0.152462]
[1738700569298,0.10238506,98408.0,98387.0,0.08141085]
[1738700569510,0.10238506,98408.0,98380.0,0.32115667]
[1738700569511,0.10238506,98408.0,98381.0,0.15]
[1738700569729,0.00063197,98407.0,98374.0,0.23141085]
[1738700570130,0.152457,98389.0,98371.0,0.152483]
[1738700570307,0.10238506,98388.0,98377.0,0.152473]
[1738700570538,0.10238506,98388.0,98374.0,0.08141085]
[1738700570735,0.10238506,98388.0,98377.0,0.152474]
[1738700570943,0.10238506,98388.0,98379.0,0.15247]
[1738700571142,0.152428,98407.0,98389.0,0.152454]
[1738700571343,0.10238506,98406.0,98381.0,0.203291]
[1738700571546,0.10238506,98406.0,98382.0,0.00121945]
[1738700572113,0.10238506,98406.0,98375.0,0.20452241]
[1738700572315,0.02363197,98405.0,98375.0,0.00121941]
[1738700572488,0.152438,98401.0,98375.0,0.00121941]
[1738700572695,0.023,98399.0,98360.0,0.32115667]
[1738700572893,0.023,98397.0,98365.0,0.00121961]
[1738700573103,0.152458,98388.0,98369.0,0.152485]
[1738700573297,0.152458,98388.0,98360.0,0.32115667]
[1738700573298,1.60238506,98387.0,98364.0,0.08263044]
[1738700573500,1.60238506,98387.0,98364.0,0.08141085]
[1738700573696,0.02363197,98386.0,98361.0,0.15]
[1738700573899,0.023,98382.0,98351.0,0.08141085]
[1738700574101,0.203322,98366.0,98351.0,0.08141085]
[1738700574304,0.152509,98355.0,98351.0,0.08141085]
[1738700574677,0.15,98405.0,98351.0,0.08141085]
[1738700574884,0.10238506,98385.0,98352.0,0.00122004]
[1738700575084,0.10238506,98385.0,98372.0,0.152481]
[1738700575288,0.10238506,98385.0,98373.0,0.00121974]
[1738700575492,0.15244,98399.0,98378.0,0.152472]
[1738700575700,0.20323,98411.0,98365.0,0.203324]
[1738700575701,0.023,98397.0,98365.0,0.203324]
[1738700575901,0.023,98395.0,98369.0,0.203314]
[1738700576094,0.023,98393.0,98378.0,0.152472]
[1738700576305,0.30565406,98392.0,98366.0,0.08141085]
[1738700576594,0.00063197,98391.0,98366.0,0.08141085]
[1738700576794,0.10238506,98390.0,98366.0,0.08141085]
[1738700577076,0.023,98389.0,98373.0,0.152479]
[1738700577274,0.10238506,98388.0,98373.0,0.152479]
[1738700577485,0.02363197,98387.0,98356.0,0.15]
[1738700577687,0.152466,98383.0,98367.0,0.152489]
[1738700577889,0.10238506,98382.0,98365.0,0.08141085]
[1738700578039,0.10238506,98382.0,98367.0,0.203318]
[1738700578381,0.02363197,98381.0,98340.0,0.32115667]
[1738700578593,0.023,98370.0,98326.0,0.0497]
[1738700578725,0.152505,98357.0,98356.0,0.08141085]
[1738700578923,0.10238506,98369.0,98356.0,0.08141085]
[1738700579157,0.152496,98364.0,98342.0,0.00122006]
[1738700579353,0.10301703,98363.0,98337.0,0.2080738]
[1738700579556,0.023,98362.0,98337.0,0.0046928]
[1738700579793,0.023,98360.0,98337.0,0.0046928]
[1738700579930,0.203349,98353.0,98337.0,0.0046928]
[1738700580132,0.203353,98351.0,98337.0,0.0046928]
[1738700580332,0.10238506,98350.0,98338.0,0.08263112]
[1738700580539,0.25490206,98350.0,98337.0,0.0046928]
[1738700580741,0.10238506,98350.0,98344.0,0.152525]
[1738700580950,0.203289,98382.0,98345.0,0.00122012]
[1738700581169,0.0784245,98389.0,98345.0,0.00122012]
[1738700581170,0.10238506,98380.0,98345.0,0.00122012]
[1738700581376,0.152476,98376.0,98361.0,0.152498]
[1738700581605,0.30568906,98375.0,98342.0,0.00121982]
[1738700581837,0.10238506,98375.0,98363.0,0.152496]
[1738700582059,0.152459,98387.0,98372.0,0.152481]
[1738700582264,0.0002245,98389.0,98375.0,0.203303]
[1738700582409,0.0002245,98389.0,98387.0,0.152458]
[1738700582606,0.0002245,98389.0,98388.0,0.15121946]
[1738700582852,0.0002245,98389.0,98388.0,0.25360452]
[1738700583008,0.0002245,98389.0,98388.0,0.37888506]
[1738700583430,0.0002245,98389.0,98388.0,0.10238506]
[1738700583639,0.0002245,98389.0,98382.0,0.0012193]
[1738700583861,0.0002245,98389.0,98366.0,0.08141085]
[1738700584239,0.10238506,98388.0,98366.0,0.08141085]
[1738700584600,0.10238506,98388.0,98355.0,0.00121968]
[1738700584892,0.10238506,98380.0,98341.0,0.08141085]
[1738700585129,0.152528,98342.0,98341.0,0.08141085]
[1738700585331,0.203368,98344.0,98341.0,0.08141085]
[1738700585470,0.10238506,98365.0,98341.0,0.08141085]
[1738700585670,0.10238506,98361.0,98329.0,0.00122025]
[1738700585893,0.152534,98339.0,98310.0,0.32115667]
[1738700586110,0.023,98338.0,98313.0,0.20343]
[1738700586379,0.10238506,98338.0,98326.0,0.152553]
[1738700586595,0.203333,98361.0,98317.0,0.00122036]
[1738700586764,0.152502,98359.0,98339.0,0.355911]
[1738700587092,0.0002245,98389.0,98340.0,0.32237675]
[1738700587315,0.10238506,98386.0,98341.0,0.25238506]
[1738700587465,0.10238506,98386.0,98374.0,0.152478]
[1738700587666,0.10238506,98386.0,98354.0,0.15]
[1738700587845,0.10238506,98386.0,98372.0,0.152481]
[1738700588063,0.25484606,98386.0,98371.0,0.152483]
[1738700588266,0.10238506,98386.0,98363.0,0.08141085]
[1738700588516,0.10238506,98386.0,98370.0,0.152484]
[1738700588652,0.00063197,98385.0,98347.0,0.203359]
[1738700588855,0.00063197,98385.0,98332.0,0.203392]
[1738700588856,0.023,98383.0,98348.0,0.152518]
[1738700589125,0.152519,98348.0,98330.0,0.52455067]
[1738700589253,0.152534,98339.0,98327.0,0.08141085]
[1738700589455,0.00063197,98366.0,98327.0,0.08141085]
[1738700589722,0.10238506,98369.0,98338.0,0.0012202]
[1738700589951,0.13541837,98368.0,98328.0,0.00122011]
[1738700590113,0.023,98365.0,98337.0,0.0046928]
[1738700590314,0.175535,98338.0,98337.0,0.0046928]
[1738700590514,0.27792006,98338.0,98337.0,0.0046928]
[1738700591177,0.10238506,98338.0,98337.0,0.0046928]
[1738700591399,0.10233198,98338.0,98337.0,0.0046928]
[1738700591616,0.12596395,98338.0,98337.0,0.0046928]
[1738700591854,0.12533198,98338.0,98337.0,0.0046928]
[1738700592053,0.12596395,98338.0,98337.0,0.0046928]
[1738700592257,1.62596395,98338.0,98337.0,0.0046928]
[1738700592458,0.10233198,98338.0,98337.0,0.0046928]
[1738700593018,0.203297,98378.0,98337.0,0.0046928]
[1738700593218,0.20333,98362.0,98337.0,0.0046928]
[1738700593428,0.152533,98339.0,98337.0,0.0046928]
[1738700593652,0.12538506,98338.0,98337.0,0.0046928]
[1738700593867,0.12601703,98338.0,98337.0,0.0046928]
[1738700594410,0.12601703,98338.0,98337.0,1e-08]
[1738700594616,0.152583,98307.0,98272.0,0.1527429]
[1738700594852,0.152583,98307.0,98272.0,0.0001069]
[1738700594853,0.27796806,98307.0,98272.0,0.0001069]
[1738700595043,0.27796806,98307.0,98282.0,0.15262]
[1738700595214,0.27796806,98307.0,98272.0,0.0001069]
[1738700595215,0.152606,98292.0,98272.0,0.0001069]
[1738700595416,0.10238506,98292.0,98272.0,0.0001069]
[1738700595641,0.203425,98316.0,98280.0,0.00122091]
[1738700595841,0.152576,98312.0,98299.0,0.152595]
[1738700596080,0.10301703,98311.0,98280.0,0.15]
[1738700596240,0.15259,98303.0,98290.0,0.152608]
[1738700596471,0.25497706,98302.0,98283.0,0.203493]
[1738700596806,0.10238506,98302.0,98292.0,0.152605]
[1738700596986,0.203385,98336.0,98288.0,0.00122069]
[1738700597231,0.203458,98300.0,98279.0,0.15]
[1738700597417,0.10238506,98299.0,98279.0,0.08141085]
[1738700597587,0.023,98291.0,98279.0,0.08141085]
[1738700597787,0.023,98289.0,98279.0,0.08141085]
[1738700598024,0.10238506,98288.0,98279.0,0.08141085]
[1738700598231,0.10238506,98288.0,98263.0,0.15122091]
[1738700598435,0.10238506,98288.0,98261.0,0.203539]
[1738700598656,0.152634,98274.0,98259.0,0.0001069]
[1738700598863,0.10238506,98273.0,98259.0,0.0001069]
[1738700599275,1.62538506,98273.0,98259.0,0.0001069]
[1738700599502,0.152646,98266.0,98259.0,0.0001069]
[1738700599671,0.27803106,98266.0,98259.0,0.0001069]
[1738700600089,0.10238506,98266.0,98264.0,0.152648]
[1738700600292,0.079,98319.0,98266.0,0.610587]
[1738700600293,1.703447,98306.0,98266.0,0.610587]
[1738700600496,0.10238506,98299.0,98267.0,0.00122099]
[1738700600655,0.10238506,98299.0,98271.0,0.203518]
[1738700600855,0.02889011,98315.0,98281.0,0.203498]
[1738700601065,0.15259,98303.0,98282.0,0.00122066]
[1738700601433,0.02889011,98315.0,98290.0,0.32115667]
[1738700601581,0.10301703,98314.0,98271.0,0.10238506]
[1738700601785,0.11268676,98313.0,98277.0,0.08141085]
[1738700601986,0.152583,98307.0,98294.0,0.152603]
[1738700602190,0.10238506,98306.0,98278.0,0.00122078]
[1738700602400,1.5,98339.0,98287.0,0.08141085]
[1738700602596,0.48801585,98376.0,98287.0,0.08141085]
[1738700602597,0.203402,98328.0,98293.0,0.203473]
[1738700602879,0.152572,98315.0,98302.0,0.152589]
[1738700603118,0.10238506,98327.0,98291.0,0.15]
[1738700603119,0.10238506,98314.0,98291.0,0.15]
[1738700603328,0.00508548,98343.0,98292.0,0.08263141]
[1738700603569,0.10238506,98339.0,98300.0,0.32115667]
[1738700603729,0.023,98323.0,98270.0,0.32115667]
[1738700603928,0.023,98321.0,98287.0,0.08141085]
[1738700604162,0.32115667,98330.0,98287.0,0.08141085]
[1738700604163,0.152604,98294.0,98287.0,0.08141085]
[1738700604438,0.023,98319.0,98287.0,0.08141085]
[1738700604638,0.32115667,98360.0,98290.0,0.32115667]
[1738700604769,0.10238506,98336.0,98300.0,0.32115667]
[1738700604960,0.10238506,98336.0,98291.0,0.1036055]
[1738700604961,0.10238506,98336.0,98301.0,0.00122043]
[1738700605166,0.203391,98333.0,98313.0,0.152573]
[1738700605370,0.023,98329.0,98302.0,0.00122044]
[1738700605585,0.152562,98321.0,98302.0,0.00122044]
[1738700605805,0.023,98318.0,98292.0,0.15]
[1738700606110,0.023,98316.0,98281.0,0.0001068]
[1738700606344,0.10301703,98315.0,98281.0,0.0001068]
[1738700606546,0.023,98314.0,98286.0,0.203485]
[1738700606766,0.023,98312.0,98281.0,0.0001068]
[1738700606973,0.10301703,98311.0,98281.0,0.00132758]
[1738700607177,0.10301703,98311.0,98281.0,0.0001068]
[1738700607178,0.023,98303.0,98281.0,0.0001068]
[1738700607326,0.10238506,98302.0,98281.0,0.0001068]
[1738700607546,0.152613,98288.0,98281.0,0.0001068]
[1738700607708,0.023,98300.0,98281.0,0.0001068]
[1738700607709,0.203467,98296.0,98281.0,0.0001068]
[1738700607912,0.10238506,98295.0,98281.0,0.0001068]
[1738700608155,0.152621,98283.0,98281.0,0.0001068]
[1738700608332,0.10238506,98283.0,98281.0,0.0001068]
[1738700608759,0.32115667,98340.0,98285.0,0.152616]
[1738700609111,0.175622,98282.0,98281.0,0.0001068]
[1738700609287,0.152646,98266.0,98261.0,0.08141085]
[1738700609669,0.152642,98269.0,98261.0,0.08141085]
[1738700609870,1.5,98266.0,98258.0,0.152658]
[1738700610122,1.5,98266.0,98254.0,0.203552]
[1738700610356,0.00706658,98281.0,98244.0,0.203573]
[1738700610555,0.12538506,98280.0,98246.0,0.00132776]
[1738700610675,0.023,98277.0,98259.0,0.1527629]
[1738700610885,0.175646,98266.0,98259.0,0.0001069]
[1738700611095,0.33351186,98266.0,98259.0,0.0001069]
[1738700611470,0.27803106,98266.0,98259.0,0.0001069]
[1738700611608,1.77803106,98266.0,98259.0,0.0001069]
[1738700611810,1.60238506,98266.0,98259.0,0.0001069]
[1738700612033,0.0474,98309.0,98259.0,0.0001069]
[1738700612241,0.203472,98294.0,98261.0,0.15]
[1738700612457,0.01464,98320.0,98266.0,0.00122088]
[1738700612677,0.203464,98298.0,98267.0,0.00122089]
[1738700612882,0.152607,98292.0,98279.0,0.152625]
[1738700613094,0.152625,98280.0,98266.0,0.356175]
[1738700613295,0.20346,98300.0,98279.0,0.152626]
[1738700613497,0.203434,98312.0,98280.0,0.00122083]
[1738700613702,0.203457,98301.0,98279.0,0.152626]
[1738700613906,0.00063197,98300.0,98279.0,0.152626]
[1738700614111,0.00063197,98300.0,98250.0,0.32115667]
[1738700614112,0.10945164,98281.0,98261.0,0.152653]
[1738700614285,0.152645,98267.0,98253.0,0.152666]
[1738700614508,0.10238506,98266.0,98254.0,0.152664]
[1738700614721,0.203504,98278.0,98252.0,0.20477816]
[1738700614899,0.152646,98267.0,98247.0,0.203566]
[1738700615098,0.12601703,98266.0,98251.0,0.0032172]
[1738700615369,0.12538506,98266.0,98251.0,0.0032172]
[1738700615572,0.12601703,98266.0,98251.0,0.0032172]
[1738700615771,0.12538506,98266.0,98251.0,0.1558862]
[1738700615976,0.12538506,98266.0,98251.0,0.0032172]
[1738700616331,0.12538506,98266.0,98251.0,0.1558862]
[1738700616541,0.01585558,98281.0,98259.0,0.2036489]
[1738700616745,0.152639,98271.0,98261.0,0.152654]
[1738700616948,0.152645,98267.0,98259.0,0.0001069]
[1738700617130,0.12601703,98266.0,98259.0,0.0001069]
[1738700617926,0.12538506,98266.0,98259.0,0.0001069]
[1738700618143,0.12601703,98266.0,98259.0,0.0001069]
[1738700618569,0.12538506,98266.0,98259.0,0.0001069]
[1738700618763,0.12601703,98266.0,98259.0,0.0001069]
[1738700618988,0.12538506,98266.0,98259.0,0.0001069]
[1738700619212,1.62601703,98266.0,98259.0,0.0001069]
[1738700619386,1.62538506,98266.0,98259.0,0.0001069]
[1738700620069,0.00883099,98272.0,98259.0,0.0001069]
[1738700620263,0.152634,98275.0,98265.0,0.152754]
[1738700620469,0.152646,98266.0,98265.0,0.000107]
[1738700620665,0.00729108,98281.0,98265.0,0.000107]
[1738700620885,0.00729108,98281.0,98266.0,0.152646]
[1738700621135,0.00729108,98281.0,98275.0,0.152631]
[1738700621347,0.00729108,98281.0,98267.0,0.00122094]
[1738700621549,0.00729108,98281.0,98279.0,0.152626]
[1738700621749,0.00729108,98281.0,98280.0,0.0012208]
[1738700621977,0.00729108,98281.0,98279.0,0.152626]
[1738700622178,0.00729108,98281.0,98280.0,0.00122074]
[1738700622602,0.00729108,98281.0,98280.0,0.2536058]
[1738700622799,0.00729108,98281.0,98280.0,0.25238506]
[1738700623431,0.01807185,98331.0,98327.0,0.152551]
[1738700623589,0.01807185,98327.0,98326.0,0.152553]
[1738700624084,0.01807185,98327.0,98326.0,0.0012203]
[1738700624285,0.01807185,98327.0,98291.0,0.00122032]
[1738700624451,0.152594,98300.0,98292.0,0.33640091]
[1738700624618,0.00063197,98325.0,98292.0,0.08141085]
[1738700624797,0.00063197,98325.0,98298.0,0.08141085]
[1738700624798,0.023,98323.0,98298.0,0.08141085]
[1738700625005,0.10238506,98324.0,98299.0,0.00122072]
[1738700625212,0.00927162,98339.0,98309.0,0.203439]
[1738700625599,0.00927162,98339.0,98284.0,0.203489]
[1738700625600,0.00022428,98339.0,98333.0,0.152542]
[1738700625810,0.00022428,98339.0,98310.0,0.1036055]
[1738700626014,0.00022428,98339.0,98303.0,0.15]
[1738700626015,0.10238506,98338.0,98313.0,0.203431]
[1738700626215,0.10238506,98338.0,98332.0,0.152544]
[1738700626419,0.10238506,98338.0,98316.0,0.00122027]
[1738700626631,0.152539,98336.0,98325.0,0.152553]
[1738700626832,0.10238506,98338.0,98316.0,0.00122027]
[1738700627026,0.023,98334.0,98305.0,0.08141085]
[1738700627339,0.023,98330.0,98305.0,0.08141085]
[1738700627583,0.023,98328.0,98305.0,0.08141085]
[1738700627784,0.023,98326.0,98305.0,0.08141085]
[1738700627935,0.023,98320.0,98305.0,0.08141085]
[1738700628140,0.152578,98310.0,98305.0,0.08141085]
[1738700628321,0.10238506,98309.0,98283.0,0.203493]
[1738700628521,0.203442,98308.0,98283.0,0.203493]
[1738700628756,0.203463,98298.0,98276.0,0.203506]
[1738700628948,0.152574,98313.0,98302.0,0.152589]
[1738700629190,0.152579,98310.0,98283.0,0.10238506]
[1738700629395,0.10238506,98309.0,98281.0,0.15]
[1738700629576,0.02363197,98308.0,98270.0,0.32115667]
[1738700629793,0.203461,98299.0,98274.0,0.08141085]
[1738700629998,0.20347,98295.0,98276.0,0.203508]
[1738700630206,0.10301703,98294.0,98272.0,0.152637]
[1738700630413,0.10238506,98294.0,98273.0,0.00122088]
[1738700630595,0.152612,98289.0,98275.0,0.20351]
[1738700630789,0.152613,98288.0,98275.0,0.0001069]
[1738700630995,0.10238506,98294.0,98275.0,0.0001069]
[1738700631364,0.023,98293.0,98275.0,0.00132775]
[1738700631747,0.152593,98301.0,98292.0,0.152605]
[1738700631955,0.023,98299.0,98284.0,0.152618]
[1738700632168,0.152631,98277.0,98275.0,0.0001069]
[1738700632596,0.10301703,98276.0,98275.0,0.0001069]
[1738700632804,0.12601703,98276.0,98275.0,0.0001069]
[1738700634300,0.12046307,98276.0,98275.0,0.0001069]
[1738700634517,0.16210213,98276.0,98265.0,0.000107]
[1738700634723,0.05971707,98276.0,98275.0,0.152632]
[1738700635552,0.05971707,98276.0,98275.0,0.38525281]
[1738700635755,0.05971707,98276.0,98275.0,0.48641706]
[1738700635980,0.01807801,98276.0,98275.0,0.48641706]
[1738700636190,0.01807801,98316.0,98276.0,0.15]
[1738700636417,0.152582,98308.0,98278.0,0.15]
[1738700636623,0.00723909,98303.0,98280.0,0.2035]
[1738700636829,0.203456,98301.0,98275.0,0.20351]
[1738700637051,0.10301703,98300.0,98271.0,0.08141085]
[1738700637257,0.20346,98299.0,98271.0,0.08141085]
[1738700637471,0.20349,98285.0,98266.0,0.203528]
[1738700637711,0.203482,98289.0,98260.0,0.0755]
[1738700637712,0.023,98295.0,98267.0,0.203527]
[1738700637922,0.152626,98280.0,98267.0,0.152645]
[1738700638128,0.152638,98272.0,98258.0,0.152658]
[1738700638336,0.152646,98267.0,98251.0,0.08462805]
[1738700638534,0.10238506,98266.0,98251.0,0.08462805]
[1738700638944,0.10301703,98266.0,98251.0,0.08462805]
[1738700639076,1.60238506,98266.0,98251.0,0.08462805]
[1738700640262,0.152618,98285.0,98284.0,0.01]
[1738700640464,0.0090134,98299.0,98281.0,0.01]
[1738700640666,0.0090134,98299.0,98284.0,0.01]
[1738700640876,0.00063197,98309.0,98284.0,0.01]
[1738700641076,0.152568,98317.0,98306.0,0.152583]
[1738700641253,0.00892138,98319.0,98303.0,0.01]
[1738700641463,0.10238506,98318.0,98303.0,0.01]
[1738700641662,0.10238506,98318.0,98307.0,0.01]
[1738700641859,1.5,98317.0,98311.0,0.01]
[1738700642431,0.0092461,98338.0,98326.0,0.01]
[1738700642659,0.0092461,98338.0,98336.0,0.152538]
[1738700642660,0.0002245,98338.0,98336.0,0.152538]
[1738700642859,0.0002245,98338.0,98337.0,0.01]
[1738700643062,0.0002245,98338.0,98335.0,0.01]
[1738700643269,0.0002245,98338.0,98311.0,0.15]
[1738700643270,0.0002245,98338.0,98337.0,0.162536]
[1738700643491,0.152545,98331.0,98330.0,0.01]
[1738700643693,0.355989,98318.0,98317.0,0.01]
[1738700643924,0.355989,98318.0,98306.0,0.01]
[1738700643925,0.10238506,98318.0,98306.0,0.01]
[1738700644135,0.152584,98306.0,98304.0,0.01]
[1738700644340,0.152584,98306.0,98276.0,0.0811]
[1738700644341,0.10238506,98305.0,98299.0,0.02]
[1738700644549,0.0472,98336.0,98305.0,0.01]
[1738700644774,0.203388,98334.0,98322.0,0.152558]
[1738700644978,0.2036055,98338.0,98328.0,0.152549]
[1738700644979,0.10238506,98333.0,98328.0,0.152549]
[1738700645202,0.0002245,98338.0,98332.0,0.01]
[1738700645409,0.0002245,98338.0,98337.0,0.01]
[1738700645622,0.0002245,98338.0,98327.0,0.01]
[1738700645802,0.0002245,98338.0,98334.0,0.01]
[1738700646155,0.10238506,98337.0,98300.0,0.32115667]
[1738700646359,0.152572,98314.0,98309.0,0.01]
[1738700646571,0.152554,98326.0,98319.0,0.01]
[1738700646757,0.15,98358.0,98323.0,0.01]
[1738700646964,0.152549,98329.0,98323.0,0.01]
[1738700647273,0.10238506,98328.0,98316.0,0.01]
[1738700647470,0.10238506,98328.0,98323.0,0.01]